bitfinex-derivatives/quotes_BTCF0:USTF0_20250121
["timestamp","ask_amount","ask_price","bid_price","bid_amount"]
[1737417602093,0.3608,102290.0,102280.0,8.343e-05]
[1737417602490,0.6608,102290.0,102230.0,0.6125]
[1737417602697,0.3608,102270.0,102230.0,0.61233833]
[1737417602894,0.1314,102260.0,102240.0,0.09776604]
[1737417603294,0.1314,102260.0,102230.0,0.25153833]
[1737417603793,0.1314,102260.0,102230.0,0.1212]
[1737417604196,0.1314,102260.0,102230.0,0.482]
[1737417604394,0.1314,102260.0,102250.0,0.00012732]
[1737417604595,0.13148805,102260.0,102250.0,0.00012732]
[1737417605290,0.13148805,102260.0,102250.0,0.09792204]
[1737417605291,0.49228805,102260.0,102250.0,0.09792204]
[1737417605494,8.805e-05,102260.0,102250.0,0.09792204]
[1737417605698,8.805e-05,102260.0,102250.0,0.00012732]
[1737417605996,8.805e-05,102260.0,102250.0,0.09792204]
[1737417606196,0.36088805,102260.0,102250.0,0.00012732]
[1737417606791,0.36088805,102260.0,102210.0,0.5979]
[1737417607098,0.3608,102230.0,102210.0,0.74841718]
[1737417607298,0.3608,102240.0,102210.0,0.69569472]
[1737417607699,0.3608,102230.0,102210.0,0.69569472]
[1737417607999,0.3608,102220.0,102190.0,0.48431562]
[1737417608499,0.3608,102220.0,102200.0,0.09782342]
[1737417608700,0.3608,102220.0,102200.0,0.05277847]
[1737417608891,0.3608,102220.0,102200.0,0.15062104]
[1737417609200,0.36089456,102210.0,102190.0,0.48881562]
[1737417609392,0.36089456,102210.0,102190.0,0.12801562]
[1737417609588,0.3608,102200.0,102190.0,0.44551669]
[1737417609793,0.3608,102200.0,102190.0,0.34767412]
[1737417610298,0.36089456,102210.0,102190.0,0.34767412]
[1737417610801,0.48809456,102210.0,102190.0,0.34767412]
[1737417611100,0.3608,102200.0,102190.0,0.34767412]
[1737417611599,0.4823,102200.0,102190.0,0.34767412]
[1737417611793,0.48809456,102210.0,102190.0,0.34767412]
[1737417612493,0.36089456,102210.0,102190.0,0.44552626]
[1737417612691,0.36089456,102210.0,102190.0,0.57592626]
[1737417612893,0.36089456,102210.0,102190.0,0.62874929]
[1737417613189,0.36089456,102210.0,102190.0,0.57592626]
[1737417614804,0.36089456,102210.0,102190.0,0.22836776]
[1737417616106,0.36089456,102210.0,102190.0,0.09796776]
[1737417616298,0.36089456,102210.0,102190.0,0.00011562]
[1737417616603,0.3608,102200.0,102190.0,0.00011562]
[1737417616904,0.36089456,102210.0,102190.0,0.00011562]
[1737417617291,0.3608,102200.0,102190.0,0.00011562]
[1737417617500,0.48950333,102200.0,102190.0,0.00011562]
[1737417619494,0.78950333,102200.0,102170.0,0.23295189]
[1737417619700,0.3608,102180.0,102170.0,0.23295189]
[1737417619999,0.7216,102180.0,102170.0,0.23295189]
[1737417620407,0.72169645,102180.0,102170.0,0.23295189]
[1737417620790,0.72169645,102180.0,102170.0,0.03335189]
[1737417621103,0.7216,102180.0,102160.0,0.25965295]
[1737417621292,0.49251239,102170.0,102160.0,0.25965295]
[1737417621495,0.00011239,102170.0,102160.0,0.25965295]
[1737417621798,0.36091239,102170.0,102130.0,0.4881]
[1737417622197,0.36091239,102170.0,102140.0,0.3608]
[1737417622397,0.00011239,102170.0,102140.0,0.3608]
[1737417622797,0.00011239,102170.0,102140.0,0.45868087]
[1737417622999,0.00011239,102170.0,102160.0,0.1255439]
[1737417623199,0.00011239,102170.0,102160.0,0.12750161]
[1737417623502,0.00011239,102170.0,102160.0,0.00195771]
[1737417623699,0.00011239,102170.0,102160.0,0.12750161]
[1737417623903,0.00011239,102170.0,102160.0,0.71172638]
[1737417624104,0.3608,102210.0,102160.0,1.14402638]
[1737417624305,0.3608,102210.0,102200.0,0.1255439]
[1737417624600,0.3608,102230.0,102200.0,0.4863439]
[1737417624792,0.3608,102230.0,102220.0,0.1255439]
[1737417625101,0.0014684,102240.0,102220.0,0.4863439]
[1737417625305,0.31615301,102250.0,102230.0,0.6118878]
[1737417625503,0.7468,102290.0,102240.0,0.6118878]
[1737417625692,0.10146752,102300.0,102280.0,0.1255439]
[1737417625897,0.10146752,102300.0,102290.0,0.1255439]
[1737417626296,0.1015675,102300.0,102290.0,0.1255439]
[1737417626498,0.1015675,102300.0,102280.0,0.1255439]
[1737417626706,0.1015675,102300.0,102290.0,0.1255439]
[1737417627096,0.1015675,102300.0,102280.0,0.22332906]
[1737417627298,0.1015675,102300.0,102270.0,0.4863439]
[1737417627299,0.4623675,102300.0,102270.0,0.4863439]
[1737417627701,0.4623675,102300.0,102270.0,0.58410516]
[1737417628003,0.1015675,102300.0,102280.0,0.1255439]
[1737417628203,0.1015675,102300.0,102290.0,0.1255439]
[1737417628703,0.1015675,102300.0,102290.0,0.22330994]
[1737417629898,0.10009998,102300.0,102290.0,0.22330994]
[1737417630211,0.00898857,102330.0,102310.0,0.03914]
[1737417630408,0.399931,102340.0,102320.0,0.1255439]
[1737417631409,0.399931,102340.0,102310.0,0.1255439]
[1737417631603,0.399934,102330.0,102310.0,0.1255439]
[1737417631804,0.039134,102330.0,102310.0,0.22057822]
[1737417632503,0.399931,102340.0,102310.0,0.31830604]
[1737417632711,0.3608,102320.0,102290.0,0.22057822]
[1737417632913,0.039143,102310.0,102290.0,0.22057822]
[1737417633104,0.524337,102330.0,102290.0,0.71825404]
[1737417633304,0.1244,102330.0,102290.0,1.06581254]
[1737417633610,0.039139,102320.0,102290.0,1.06581254]
[1737417634310,0.1244,102330.0,102290.0,1.02666454]
[1737417634507,0.03913,102340.0,102310.0,0.25971822]
[1737417635104,0.03913,102340.0,102310.0,0.35744604]
[1737417635812,0.03913,102340.0,102320.0,0.3608]
[1737417636111,0.399926,102350.0,102330.0,0.22057822]
[1737417636809,0.399926,102350.0,102320.0,0.25971422]
[1737417637307,0.399926,102350.0,102320.0,0.35642772]
[1737417638210,0.3608,102350.0,102340.0,0.22057822]
[1737417638510,0.1244,102370.0,102350.0,0.039126]
[1737417638713,0.039115,102380.0,102360.0,0.22057822]
[1737417640010,0.41065486,102390.0,102360.0,0.22057822]
[1737417640210,0.00146702,102390.0,102380.0,0.25969322]
[1737417640912,0.04057802,102390.0,102380.0,0.22057822]
[1737417641214,0.04057802,102390.0,102360.0,0.2598121]
[1737417641607,0.04057802,102390.0,102360.0,0.35748265]
[1737417641912,0.40137802,102390.0,102360.0,0.35748265]
[1737417642112,0.039115,102380.0,102360.0,0.31836165]
[1737417642308,0.36226702,102390.0,102360.0,0.00011288]
[1737417642509,0.04057802,102390.0,102370.0,0.22057822]
[1737417642709,0.00146702,102390.0,102370.0,0.25969622]
[1737417642912,0.00146702,102390.0,102380.0,0.039115]
[1737417643309,0.00146702,102390.0,102380.0,0.399915]
[1737417643615,0.1,102400.0,102390.0,0.039111]
[1737417643918,0.1,102400.0,102390.0,0.62048922]
[1737417644319,0.1,102400.0,102390.0,0.35735977]
[1737417644518,0.1,102400.0,102390.0,0.71815977]
[1737417645017,0.4608,102400.0,102380.0,0.84276]
[1737417645208,0.4608,102400.0,102370.0,0.22057822]
[1737417645209,0.1,102400.0,102370.0,0.22057822]
[1737417645408,0.3608,102390.0,102370.0,0.22057822]
[1737417645722,0.399915,102380.0,102360.0,0.00011288]
[1737417646018,0.039118,102370.0,102360.0,0.00011288]
[1737417646316,0.03913,102340.0,102320.0,0.8294385]
[1737417646517,0.039134,102330.0,102320.0,0.3475585]
[1737417646711,0.039134,102330.0,102320.0,0.3143524]
[1737417646911,0.039137,102330.0,102320.0,0.3143524]
[1737417647108,0.399937,102330.0,102320.0,0.3143524]
[1737417647315,0.699937,102330.0,102300.0,0.4054849]
[1737417647611,0.039141,102310.0,102300.0,0.4054849]
[1737417647811,0.40004703,102310.0,102300.0,0.4054849]
[1737417648013,0.40004703,102310.0,102300.0,0.31381651]
[1737417648823,0.039149,102290.0,102280.0,6.934e-05]
[1737417649213,0.03921814,102290.0,102280.0,6.934e-05]
[1737417649421,6.914e-05,102290.0,102280.0,6.934e-05]
[1737417649615,6.914e-05,102290.0,102280.0,0.13696927]
[1737417649816,6.914e-05,102290.0,102280.0,0.09781627]
[1737417650121,0.03921814,102290.0,102280.0,6.934e-05]
[1737417650514,6.914e-05,102290.0,102280.0,6.934e-05]
[1737417651519,6.914e-05,102290.0,102280.0,0.13698838]
[1737417651713,6.914e-05,102290.0,102280.0,0.79778838]
[1737417651915,6.914e-05,102290.0,102280.0,1.05258838]
[1737417652423,6.914e-05,102290.0,102280.0,0.75258838]
[1737417652623,6.914e-05,102290.0,102280.0,1.05258838]
[1737417652821,1.4e-07,102290.0,102280.0,1.05258838]
[1737417653229,0.00146703,102340.0,102330.0,0.039134]
[1737417653527,0.6024958,102380.0,102350.0,0.039125]
[1737417653718,0.6024958,102380.0,102350.0,0.62050322]
[1737417654318,4.374e-05,102370.0,102350.0,0.62050322]
[1737417654524,4.374e-05,102370.0,102350.0,0.71819286]
[1737417654920,4.374e-05,102370.0,102360.0,0.399922]
[1737417655421,0.04108581,102380.0,102360.0,0.399922]
[1737417655625,0.04108581,102380.0,102360.0,0.13681641]
[1737417656017,0.04108581,102380.0,102360.0,0.039122]
[1737417656219,0.039111,102390.0,102360.0,0.13876074]
[1737417656621,0.039111,102390.0,102360.0,0.04107588]
[1737417657327,0.630407,102400.0,102370.0,0.039118]
[1737417657521,0.269607,102400.0,102370.0,0.039118]
[1737417657717,0.5913,102400.0,102360.0,0.00195388]
[1737417657932,0.039115,102380.0,102360.0,0.00195388]
[1737417658332,0.399915,102380.0,102360.0,0.00195388]
[1737417658630,0.399915,102380.0,102360.0,0.40187488]
[1737417658631,0.3608,102380.0,102360.0,0.40187488]
[1737417658829,0.399911,102390.0,102360.0,0.40187488]
[1737417659423,0.399911,102390.0,102360.0,0.45543758]
[1737417659724,0.399911,102390.0,102360.0,0.4534837]
[1737417660032,0.40919641,102390.0,102360.0,0.4534837]
[1737417660627,0.5913,102400.0,102390.0,0.039111]
[1737417660827,0.2305,102400.0,102390.0,0.039111]
[1737417661435,0.1,102400.0,102390.0,0.62048922]
[1737417661626,0.1,102400.0,102390.0,0.31268278]
[1737417664128,0.00146601,102410.0,102390.0,0.77114379]
[1737417664333,0.00146601,102410.0,102400.0,0.399907]
[1737417664530,0.31609201,102430.0,102400.0,0.45290056]
[1737417664829,0.31609201,102430.0,102420.0,0.039099]
[1737417665232,0.31609201,102430.0,102420.0,0.62047722]
[1737417665429,0.31609201,102430.0,102420.0,0.6734178]
[1737417665734,0.31609201,102430.0,102420.0,0.09203958]
[1737417666233,0.31609201,102430.0,102420.0,0.25967722]
[1737417666433,0.31609201,102430.0,102420.0,0.71810963]
[1737417666631,0.31609201,102430.0,102420.0,0.77102327]
[1737417666838,0.04,102440.0,102430.0,0.039095]
[1737417667023,0.04,102440.0,102430.0,0.45280864]
[1737417667427,0.04,102440.0,102430.0,0.55044105]
[1737417667831,0.20073326,102450.0,102440.0,0.039092]
[1737417668029,0.2295549,102460.0,102440.0,0.039092]
[1737417668030,0.2295549,102460.0,102450.0,0.039088]
[1737417668237,0.2295549,102460.0,102450.0,0.399888]
[1737417668436,9e-07,102460.0,102450.0,0.49751088]
[1737417668634,0.1,102500.0,102450.0,0.51124019]
[1737417668939,0.30268675,102500.0,102490.0,0.039073]
[1737417669736,0.34175575,102500.0,102480.0,0.62045322]
[1737417669935,0.039073,102490.0,102470.0,0.03908]
[1737417670235,0.34175675,102500.0,102480.0,0.22057822]
[1737417670541,0.30268675,102500.0,102490.0,0.039073]
[1737417671035,0.34175675,102500.0,102490.0,0.039073]
[1737417671239,0.30268675,102500.0,102490.0,0.039073]
[1737417671449,0.30268675,102500.0,102490.0,0.25965122]
[1737417672137,0.05168675,102500.0,102490.0,0.25965122]
[1737417672939,0.05168675,102500.0,102490.0,0.039073]
[1737417673141,0.05168675,102500.0,102490.0,0.13663873]
[1737417673337,0.05168675,102500.0,102490.0,0.49743873]
[1737417673538,7.5e-07,102500.0,102490.0,0.79743873]
[1737417673844,0.2582493,102520.0,102510.0,0.039065]
[1737417674141,0.2582493,102520.0,102510.0,0.399865]
[1737417674541,0.2582493,102520.0,102510.0,0.49743073]
[1737417674741,0.00146447,102530.0,102520.0,0.039061]
[1737417674945,0.00146447,102530.0,102520.0,0.62043922]
[1737417675236,0.1298,102560.0,102550.0,0.03905]
[1737417675748,0.1298,102560.0,102520.0,0.399859]
[1737417675749,0.039052,102550.0,102520.0,0.399859]
[1737417676241,0.039061,102520.0,102510.0,0.00070313]
[1737417676547,0.039066,102510.0,102490.0,0.039072]
[1737417677040,0.4942,102530.0,102500.0,0.3608]
[1737417677245,0.039058,102530.0,102510.0,0.25964222]
[1737417677442,0.00010313,102520.0,102510.0,0.62044222]
[1737417677646,0.00010313,102520.0,102510.0,0.71800319]
[1737417677842,0.36226396,102560.0,102510.0,0.71800319]
[1737417677843,0.00146396,102560.0,102510.0,1.01800319]
[1737417678144,0.00146396,102560.0,102550.0,0.62042822]
[1737417678343,0.00146396,102560.0,102550.0,0.25962822]
[1737417678542,0.172438,102580.0,102550.0,0.22057822]
[1737417678743,0.4942,102580.0,102560.0,0.039045]
[1737417678967,0.039042,102570.0,102550.0,0.1365957]
[1737417679142,0.039045,102570.0,102540.0,0.03905]
[1737417679333,0.039046,102560.0,102540.0,0.03905]
[1737417679735,0.4901,102570.0,102530.0,0.58137822]
[1737417679736,0.3608,102550.0,102530.0,0.039057]
[1737417679943,0.6158,102570.0,102540.0,0.3608]
[1737417680250,0.654845,102570.0,102550.0,0.399848]
[1737417680451,0.654845,102570.0,102550.0,0.039048]
[1737417680641,0.6158,102570.0,102550.0,0.039048]
[1737417680845,0.654843,102570.0,102550.0,0.039048]
[1737417681150,0.039047,102560.0,102540.0,0.039052]
[1737417681351,0.654843,102570.0,102560.0,0.039046]
[1737417681646,0.294043,102570.0,102550.0,0.039049]
[1737417681840,0.294043,102570.0,102530.0,0.399857]
[1737417681841,0.255,102570.0,102530.0,0.58137822]
[1737417682041,0.255,102570.0,102560.0,0.039046]
[1737417682042,0.1293,102570.0,102560.0,0.039046]
[1737417682247,0.1334,102580.0,102570.0,0.039042]
[1737417682547,0.172438,102580.0,102570.0,0.039042]
[1737417682742,0.172438,102580.0,102560.0,0.039045]
[1737417682944,0.3608,102570.0,102540.0,0.3608]
[1737417683145,0.039046,102560.0,102550.0,0.039049]
[1737417683340,0.3608,102570.0,102540.0,0.039052]
[1737417683550,0.03905,102550.0,102540.0,0.039052]
[1737417683746,0.1,102600.0,102560.0,0.039046]
[1737417684044,0.139031,102600.0,102590.0,0.039034]
[1737417684250,0.1,102600.0,102590.0,0.039034]
[1737417684447,0.139031,102600.0,102590.0,0.039034]
[1737417684652,0.1,102600.0,102590.0,0.039034]
[1737417685249,0.039035,102590.0,102580.0,0.039038]
[1737417685445,0.399835,102590.0,102580.0,0.039038]
[1737417685648,0.399835,102590.0,102560.0,0.62237429]
[1737417685649,1.899835,102590.0,102560.0,0.58332829]
[1737417685850,1.899835,102590.0,102570.0,0.039041]
[1737417686054,0.039038,102580.0,102570.0,0.039041]
[1737417686247,0.525638,102580.0,102570.0,0.039041]
[1737417686550,0.039042,102570.0,102560.0,0.04099507]
[1737417686955,0.399842,102570.0,102560.0,0.04099507]
[1737417687448,0.399842,102570.0,102560.0,0.00195007]
[1737417687652,0.6608,102570.0,102550.0,0.03905]
[1737417687955,0.039046,102560.0,102550.0,0.03905]
[1737417688147,0.4863,102560.0,102510.0,0.62044122]
[1737417688343,0.3608,102530.0,102490.0,1.13690301]
[1737417688546,0.039061,102520.0,102510.0,0.039064]
[1737417689651,0.039066,102510.0,102500.0,0.039068]
[1737417689950,0.399866,102510.0,102500.0,0.039069]
[1737417690151,0.399866,102510.0,102490.0,0.55552379]
[1737417690350,0.039069,102500.0,102490.0,0.51645279]
[1737417690557,0.039069,102500.0,102490.0,0.55552579]
[1737417690750,0.039069,102500.0,102490.0,0.51645279]
[1737417690945,0.399869,102500.0,102490.0,0.51645279]
[1737417691150,0.039069,102500.0,102490.0,0.51645279]
[1737417691350,0.039069,102500.0,102490.0,0.55552579]
[1737417691850,0.4863,102510.0,102490.0,0.03919952]
[1737417691851,0.525366,102510.0,102490.0,0.03919952]
[1737417692045,0.525366,102510.0,102490.0,0.00012652]
[1737417692251,0.525366,102510.0,102500.0,0.039069]
[1737417692560,0.039069,102500.0,102490.0,0.00012652]
[1737417693059,0.399869,102500.0,102490.0,0.00012652]
[1737417693656,0.399869,102500.0,102490.0,0.03919952]
[1737417693856,0.4863,102510.0,102490.0,0.03919952]
[1737417694155,0.039069,102500.0,102490.0,0.00012652]
[1737417694357,0.039069,102500.0,102490.0,0.03919952]
[1737417694761,0.399866,102510.0,102490.0,0.36092652]
[1737417694955,0.399866,102510.0,102500.0,0.039069]
[1737417695450,0.039069,102500.0,102490.0,0.03919852]
[1737417696059,0.039069,102500.0,102490.0,0.00012652]
[1737417696254,0.399869,102500.0,102490.0,0.00012652]
[1737417698657,0.399866,102510.0,102490.0,0.03919652]
[1737417698861,0.399865,102510.0,102500.0,0.039069]
[1737417699057,0.3608,102510.0,102490.0,0.03919852]
[1737417699252,0.399866,102510.0,102500.0,0.04]
[1737417700356,0.399866,102510.0,102500.0,0.079069]
[1737417701059,0.399866,102510.0,102500.0,0.04]
[1737417701252,0.039069,102500.0,102490.0,0.00012652]
[1737417701467,0.399866,102510.0,102500.0,0.039069]
[1737417701662,0.399866,102510.0,102500.0,0.079069]
[1737417701857,0.56957945,102520.0,102500.0,0.079069]
[1737417701858,0.08657945,102520.0,102510.0,0.039065]
[1737417702071,0.08657945,102520.0,102510.0,0.079065]
[1737417702359,0.08657945,102520.0,102510.0,0.13145978]
[1737417702568,0.08657945,102520.0,102510.0,0.439865]
[1737417702767,0.08657945,102520.0,102510.0,0.079065]
[1737417703063,0.12710268,102530.0,102520.0,0.039061]
[1737417703569,0.08804368,102530.0,102520.0,0.039061]
[1737417703757,0.08804368,102530.0,102520.0,0.09145486]
[1737417703963,0.48790068,102530.0,102520.0,0.05239386]
[1737417704168,0.48790068,102530.0,102510.0,0.118124]
[1737417704468,0.48790068,102530.0,102520.0,0.039061]
[1737417704766,0.039061,102520.0,102510.0,0.079064]
[1737417704962,0.039061,102520.0,102510.0,0.1314663]
[1737417705364,0.44884368,102530.0,102520.0,0.039061]
[1737417705561,0.44884368,102530.0,102520.0,0.09146549]
[1737417706870,0.44884368,102530.0,102520.0,0.31204371]
[1737417707166,0.08804368,102530.0,102520.0,0.25963922]
[1737417707466,0.08804368,102530.0,102520.0,0.039061]
[1737417707653,0.12710068,102530.0,102520.0,0.039061]
[1737417707859,0.039061,102520.0,102510.0,0.079063]
[1737417708254,0.039061,102520.0,102510.0,0.04]
[1737417708462,0.399861,102520.0,102510.0,0.04]
[1737417709165,0.699861,102520.0,102510.0,0.04]
[1737417709462,0.039069,102500.0,102490.0,0.17271022]
[1737417709667,0.399869,102500.0,102490.0,0.21271022]
[1737417710162,0.760669,102500.0,102490.0,0.21271022]
[1737417710362,1.28124722,102500.0,102490.0,0.21271022]
[1737417710560,1.539073,102490.0,102480.0,8.8e-07]
[1737417710764,1.899873,102490.0,102480.0,8.8e-07]
[1737417710959,1.899873,102490.0,102480.0,0.17422063]
[1737417710960,2.199873,102490.0,102480.0,0.17422063]
[1737417711167,0.409276,102480.0,102470.0,0.10364117]
[1737417711469,0.03908,102470.0,102460.0,8.8e-07]
[1737417711762,0.39988,102470.0,102460.0,8.8e-07]
[1737417712156,0.39998612,102470.0,102460.0,8.8e-07]
[1737417712360,0.62045822,102470.0,102460.0,8.8e-07]
[1737417712567,1.04935822,102470.0,102460.0,8.8e-07]
[1737417712869,0.039092,102440.0,102430.0,0.30290283]
[1737417713169,0.40000048,102440.0,102430.0,0.30290283]
[1737417713565,1.070092,102440.0,102430.0,8.3e-07]
[1737417713867,0.039099,102420.0,102410.0,0.8283891]
[1737417714070,0.76077724,102420.0,102410.0,0.8283891]
[1737417714378,1.060699,102420.0,102410.0,0.8243891]
[1737417714664,0.7216,102420.0,102410.0,0.8634921]
[1737417714856,0.72170394,102420.0,102410.0,0.8243891]
[1737417715063,0.039103,102410.0,102400.0,0.10008458]
[1737417715260,0.36087023,102410.0,102400.0,0.13919158]
[1737417717062,7.023e-05,102410.0,102400.0,0.49999158]
[1737417717464,7.023e-05,102410.0,102400.0,0.63009158]
[1737417719070,1e-08,102410.0,102400.0,0.63009158]
[1737417719374,0.3608,102430.0,102410.0,0.039103]
[1737417719375,0.31764535,102420.0,102410.0,0.039103]
[1737417720369,0.31770164,102420.0,102410.0,0.173103]
[1737417721576,0.35680064,102420.0,102410.0,0.173103]
[1737417721878,0.31770164,102420.0,102410.0,0.173103]
[1737417722080,0.31770164,102420.0,102410.0,0.39368122]
[1737417722267,0.31770164,102420.0,102410.0,0.85212316]
[1737417722470,0.36140136,102440.0,102430.0,0.039095]
[1737417722977,0.00060136,102440.0,102430.0,0.3608]
[1737417723179,0.00060136,102440.0,102410.0,0.75448122]
[1737417723377,0.00060136,102440.0,102430.0,0.399895]
[1737417723681,3.6e-07,102440.0,102430.0,0.039095]
[1737417723986,3.6e-07,102440.0,102430.0,0.98127322]
[1737417724177,3.6e-07,102440.0,102430.0,1.3788961]
[1737417724381,3.6e-07,102440.0,102430.0,1.0788961]
[1737417724679,0.0868078,102440.0,102430.0,1.0788961]
[1737417724876,0.4476078,102440.0,102430.0,0.039095]
[1737417725075,0.039099,102420.0,102410.0,0.039102]
[1737417725277,0.039099,102420.0,102400.0,0.3599377]
[1737417725579,0.039103,102410.0,102400.0,0.3990427]
[1737417725779,0.039103,102410.0,102400.0,0.2712427]
[1737417726072,0.039103,102410.0,102400.0,0.1411427]
[1737417726280,0.039103,102410.0,102400.0,0.1020377]
[1737417726281,0.399903,102410.0,102400.0,0.1020377]
[1737417726469,0.399903,102410.0,102380.0,0.70367822]
[1737417726470,0.760703,102410.0,102380.0,0.1223]
[1737417726674,0.3608,102390.0,102380.0,0.039114]
[1737417727179,0.3608,102390.0,102370.0,0.039118]
[1737417727374,0.3608,102390.0,102360.0,0.3608]
[1737417727375,0.3608,102380.0,102360.0,0.039121]
[1737417727577,0.3608,102380.0,102340.0,0.039129]
[1737417727578,0.3608,102370.0,102340.0,0.039129]
[1737417727772,0.399927,102350.0,102330.0,0.039132]
[1737417727966,0.399927,102350.0,102320.0,0.48509603]
[1737417727967,0.399927,102350.0,102340.0,0.03913]
[1737417728274,0.039127,102350.0,102340.0,0.03913]
[1737417728480,0.039127,102350.0,102320.0,0.58280953]
[1737417728674,0.03920819,102340.0,102320.0,0.12429603]
[1737417728874,0.039134,102330.0,102320.0,0.16343303]
[1737417729278,0.039134,102330.0,102320.0,9.603e-05]
[1737417729475,0.399934,102330.0,102320.0,9.603e-05]
[1737417729873,0.399934,102330.0,102320.0,0.03923303]
[1737417730278,0.399934,102330.0,102320.0,9.603e-05]
[1737417730682,0.039141,102320.0,102300.0,0.139144]
[1737417730875,0.399941,102320.0,102300.0,0.139144]
[1737417731075,0.3608,102310.0,102300.0,0.139144]
[1737417731271,0.399941,102320.0,102300.0,0.139144]
[1737417731272,0.3608,102320.0,102310.0,0.039141]
[1737417731495,0.40001557,102330.0,102320.0,0.039137]
[1737417732388,1.90001557,102330.0,102320.0,0.039137]
[1737417732684,0.40001557,102330.0,102320.0,0.039137]
[1737417732885,0.36088157,102330.0,102320.0,0.039137]
[1737417734386,8.157e-05,102330.0,102320.0,0.039137]
[1737417734977,0.03921557,102330.0,102310.0,0.170041]
[1737417735376,8.157e-05,102330.0,102320.0,0.039137]
[1737417736381,0.03921557,102330.0,102310.0,0.399941]
[1737417736586,0.399937,102320.0,102300.0,0.139145]
[1737417736983,0.40002608,102310.0,102300.0,0.1]
[1737417737586,0.40002608,102310.0,102300.0,0.139145]
[1737417737774,0.40002608,102310.0,102300.0,0.16361704]
[1737417737975,0.36088508,102310.0,102300.0,0.16361704]
[1737417738585,0.36088508,102310.0,102300.0,0.139145]
[1737417738785,0.36088508,102310.0,102300.0,0.16361625]
[1737417739292,8.508e-05,102310.0,102300.0,0.16361625]
[1737417739491,8.508e-05,102310.0,102300.0,0.52441625]
[1737417739889,0.3608,102330.0,102320.0,0.039137]
[1737417740279,0.399934,102330.0,102320.0,0.039137]
[1737417740589,0.3608,102330.0,102320.0,0.039137]
[1737417740789,0.36087044,102330.0,102320.0,0.039137]
[1737417741995,0.36087044,102330.0,102300.0,0.4608]
[1737417742194,1.86087044,102330.0,102320.0,0.039137]
[1737417742981,1.50007044,102330.0,102320.0,0.039137]
[1737417743184,7.044e-05,102330.0,102320.0,0.399937]
[1737417743387,7.044e-05,102330.0,102320.0,0.531037]
[1737417744297,4.4e-07,102330.0,102320.0,0.62876482]
[1737417744999,4.4e-07,102330.0,102320.0,0.170237]
[1737417745389,4.4e-07,102330.0,102320.0,0.531037]
[1737417747092,4.4e-07,102330.0,102320.0,0.170237]
[1737417747301,4.4e-07,102330.0,102320.0,0.531037]
[1737417747598,0.39993444,102330.0,102320.0,0.039137]
[1737417747894,0.039137,102320.0,102310.0,0.039141]
[1737417748094,0.3608,102320.0,102300.0,0.1]
[1737417748287,0.399941,102310.0,102300.0,0.1]
[1737417748800,0.62051922,102310.0,102300.0,0.1]
[1737417749292,0.039149,102290.0,102280.0,0.00011036]
[1737417749498,0.98132722,102290.0,102240.0,0.3608]
[1737417749693,0.3608,102260.0,102250.0,0.039163]
[1737417749888,0.03916,102260.0,102250.0,0.039163]
[1737417750088,0.3608,102260.0,102250.0,0.06364411]
[1737417750291,0.39996,102260.0,102250.0,0.02448111]
[1737417750492,0.40003497,102260.0,102250.0,0.02448111]
[1737417750794,0.039168,102240.0,102230.0,0.28918976]
[1737417751097,0.76088529,102240.0,102230.0,0.28918976]
[1737417751302,0.75703912,102240.0,102230.0,0.28918976]
[1737417751894,0.75703912,102240.0,102220.0,0.039175]
[1737417752094,0.399972,102230.0,102220.0,0.039175]
[1737417752295,0.61273744,102230.0,102210.0,0.039179]
[1737417752496,0.3608,102220.0,102210.0,0.039179]
[1737417753201,0.399976,102220.0,102210.0,0.039179]
[1737417753398,0.40010099,102220.0,102200.0,0.13927565]
[1737417753596,0.39998,102210.0,102200.0,0.13927565]
[1737417754109,0.03918,102210.0,102200.0,0.10009265]
[1737417754295,0.39998,102210.0,102200.0,0.10009265]
[1737417754694,0.61282728,102210.0,102200.0,0.10009265]
[1737417754901,0.039186,102200.0,102170.0,0.32838276]
[1737417755105,0.399986,102200.0,102170.0,0.32838276]
[1737417755298,0.3608,102190.0,102170.0,0.32838276]
[1737417755801,0.399991,102180.0,102170.0,0.28918976]
[1737417755996,0.40007415,102180.0,102170.0,0.28918976]
[1737417756391,0.399991,102180.0,102170.0,0.28918976]
[1737417756792,0.3608,102180.0,102160.0,0.34702771]
[1737417756994,0.0392,102160.0,102140.0,0.039206]
[1737417757293,7.459e-05,102150.0,102140.0,0.400006]
[1737417757499,5.9e-07,102150.0,102140.0,0.61277144]
[1737417757695,5.9e-07,102150.0,102140.0,1.13004752]
[1737417758100,5.9e-07,102150.0,102140.0,1.13200561]
[1737417758404,0.62215226,102210.0,102180.0,0.039188]
[1737417758608,0.37020582,102210.0,102180.0,0.57356544]
[1737417758909,0.40144557,102220.0,102200.0,0.039183]
[1737417759207,0.399981,102210.0,102190.0,0.039187]
[1737417759393,0.36092108,102210.0,102190.0,0.3608]
[1737417759599,0.36092108,102210.0,102200.0,0.039183]
[1737417759909,0.039184,102200.0,102180.0,0.03919]
[1737417760094,0.399984,102200.0,102180.0,0.03919]
[1737417760300,0.61274944,102200.0,102180.0,0.03919]
[1737417760495,0.00011317,102190.0,102180.0,0.03919]
[1737417760701,0.00011317,102190.0,102180.0,0.039191]
[1737417761109,0.00011317,102190.0,102180.0,0.42448959]
[1737417761517,0.00011317,102190.0,102180.0,0.06368959]
[1737417762112,0.00011317,102190.0,102180.0,0.42448959]
[1737417762309,0.00011317,102190.0,102180.0,0.37916797]
[1737417762713,0.00011317,102190.0,102180.0,0.41835897]
[1737417764115,0.00011317,102190.0,102180.0,0.72898613]
[1737417764407,0.00011317,102190.0,102180.0,0.41835897]
[1737417764611,0.3608,102210.0,102200.0,0.039183]
[1737417764815,0.00146857,102220.0,102210.0,0.03918]
[1737417765314,0.00146857,102220.0,102210.0,0.39998]
[1737417765609,1.94750474,102230.0,102220.0,0.039176]
[1737417765817,0.44754552,102230.0,102220.0,0.039176]
[1737417766001,0.48671852,102230.0,102210.0,0.399979]
[1737417766206,1.94754552,102230.0,102220.0,0.039176]
[1737417768211,1.94754552,102230.0,102190.0,0.399987]
[1737417768212,2.26081278,102230.0,102190.0,0.399987]
[1737417768417,0.3608,102220.0,102200.0,0.03918]
[1737417768617,0.3608,102220.0,102210.0,0.03918]
[1737417770011,0.36148078,102230.0,102220.0,0.039176]
[1737417770211,0.36084078,102230.0,102220.0,0.039176]
[1737417771611,0.00060001,102240.0,102220.0,0.71056486]
[1737417771811,0.00146796,102250.0,102240.0,0.039168]